[Event "Late-Titled-Tuesday-Blitz-February-13-2024"]
[Site "Chess.com"]
[Date "2024.02.13"]
[Round "11"]
[White "Korchmar_Vasiliy"]
[Black "Zhigalko_Sergei"]
[Result "0-1"]
[WhiteElo "2767"]
[BlackElo "2940"]
[TimeControl "180+1"]
[EndTime "16:05:31 PST"]
[Termination "Zhigalko_Sergei won on time"]

1. e4 {[%clk 0:03:00.9]} 1... c5 {[%clk 0:03:00]} 2. d4 {[%clk 0:03:01.5]} 2...
cxd4 {[%clk 0:02:58.8]} 3. Qxd4 {[%clk 0:03:02.4]} 3... Nc6 {[%clk 0:02:58.4]}
4. Qd3 {[%clk 0:03:03.1]} 4... g6 {[%clk 0:02:51]} 5. Nc3 {[%clk 0:03:03.1]}
5... Bg7 {[%clk 0:02:51.4]} 6. Nf3 {[%clk 0:03:03.8]} 6... Nf6 {[%clk 0:02:49]}
7. Be2 {[%clk 0:03:04.4]} 7... O-O {[%clk 0:02:47.9]} 8. O-O {[%clk 0:03:05.1]}
8... d6 {[%clk 0:02:42.8]} 9. Nd5 {[%clk 0:03:05.5]} 9... Nxd5 {[%clk
0:02:35.6]} 10. exd5 {[%clk 0:03:05.3]} 10... Nb4 {[%clk 0:02:28.9]} 11. Qd1
{[%clk 0:03:05.5]} 11... a5 {[%clk 0:02:27.6]} 12. c3 {[%clk 0:02:51.9]} 12...
Na6 {[%clk 0:02:27.6]} 13. Bg5 {[%clk 0:02:44.6]} 13... Nc5 {[%clk 0:02:26.6]}
14. Re1 {[%clk 0:02:36.4]} 14... Bg4 {[%clk 0:02:10.5]} 15. h3 {[%clk 0:02:26]}
15... Bxf3 {[%clk 0:02:10.4]} 16. Bxf3 {[%clk 0:02:26.9]} 16... Bf6 {[%clk
0:02:11.1]} 17. Bxf6 {[%clk 0:02:14]} 17... exf6 {[%clk 0:02:10.9]} 18. Qd2
{[%clk 0:02:08.1]} 18... Qb6 {[%clk 0:02:01.8]} 19. Re7 {[%clk 0:02:05.2]} 19...
Rac8 {[%clk 0:01:48]} 20. Rae1 {[%clk 0:02:03.9]} 20... Kg7 {[%clk 0:01:41.3]}
21. h4 {[%clk 0:01:53.5]} 21... h5 {[%clk 0:01:39.7]} 22. R1e3 {[%clk
0:01:45.1]} 22... Rc7 {[%clk 0:01:31.3]} 23. Rxc7 {[%clk 0:01:36.5]} 23... Qxc7
{[%clk 0:01:31.5]} 24. Bxh5 {[%clk 0:01:37.3]} 24... Rh8 {[%clk 0:01:31.6]} 25.
Bg4 {[%clk 0:01:29.2]} 25... Rxh4 {[%clk 0:01:30.5]} 26. Bh3 {[%clk 0:01:29.8]}
26... f5 {[%clk 0:01:15]} 27. Qe1 {[%clk 0:01:21.1]} 27... Re4 {[%clk
0:01:02.6]} 28. Rxe4 {[%clk 0:00:59.1]} 28... Nxe4 {[%clk 0:00:58.1]} 29. g4
{[%clk 0:00:59]} 29... Ng5 {[%clk 0:00:47.7]} 30. Qe3 {[%clk 0:00:57.8]} 30...
f4 {[%clk 0:00:35.7]} 31. Qd4+ {[%clk 0:00:54.8]} 31... f6 {[%clk 0:00:36]} 32.
Bg2 {[%clk 0:00:51.5]} 32... f3 {[%clk 0:00:26.3]} 33. Bf1 {[%clk 0:00:51.9]}
33... Qe7 {[%clk 0:00:17.8]} 34. Kh2 {[%clk 0:00:13.5]} 34... Qe1 {[%clk
0:00:15.9]} 35. Bd3 {[%clk 0:00:13.8]} 35... Qe8 {[%clk 0:00:07.3]} 36. Kg1
{[%clk 0:00:06.7]} 36... Qh8 {[%clk 0:00:06.2]} 37. Qf4 {[%clk 0:00:02.8]} 37...
Qh4 {[%clk 0:00:04.8]} 38. Qxd6 {[%clk 0:00:01.7]} 38... Qxg4+ {[%clk
0:00:04.8]} 39. Qg3 {[%clk 0:00:01.9]} 39... Qd7 {[%clk 0:00:04.4]} 40. c4
{[%clk 0:00:01.4]} 40... Qe7 {[%clk 0:00:04.3]} 0-1

[Event "Late-Titled-Tuesday-Blitz-February-13-2024"]
[Site "Chess.com"]
[Date "2024.02.13"]
[Round "11"]
[White "Kotlyar_K"]
[Black "TanitoluwaAps116"]
[Result "0-1"]
[WhiteElo "2538"]
[BlackElo "2773"]
[TimeControl "180+1"]
[EndTime "16:05:37 PST"]
[Termination "TanitoluwaAps116 won by checkmate"]

1. d4 {[%clk 0:03:00.9]} 1... Nf6 {[%clk 0:02:59.4]} 2. c4 {[%clk 0:02:57.9]}
2... e6 {[%clk 0:02:59.8]} 3. Nc3 {[%clk 0:02:57.3]} 3... Bb4 {[%clk 0:03:00.1]}
4. e3 {[%clk 0:02:57.7]} 4... O-O {[%clk 0:03:00.2]} 5. Bd2 {[%clk 0:02:58.1]}
5... d5 {[%clk 0:02:56.8]} 6. Nf3 {[%clk 0:02:58]} 6... b6 {[%clk 0:02:57]} 7.
cxd5 {[%clk 0:02:57.7]} 7... exd5 {[%clk 0:02:57.7]} 8. Bd3 {[%clk 0:02:58.2]}
8... Bb7 {[%clk 0:02:58.3]} 9. O-O {[%clk 0:02:57.9]} 9... Nbd7 {[%clk
0:02:58.3]} 10. Rc1 {[%clk 0:02:53.6]} 10... a6 {[%clk 0:02:57.4]} 11. Ne5
{[%clk 0:02:49.2]} 11... c5 {[%clk 0:02:52.6]} 12. f4 {[%clk 0:02:46.1]} 12...
cxd4 {[%clk 0:02:51.1]} 13. exd4 {[%clk 0:02:46]} 13... Bxc3 {[%clk 0:02:51.4]}
14. bxc3 {[%clk 0:02:44.4]} 14... Ne4 {[%clk 0:02:50.9]} 15. Be1 {[%clk
0:02:42.2]} 15... f6 {[%clk 0:02:49.5]} 16. Nxd7 {[%clk 0:02:18.3]} 16... Qxd7
{[%clk 0:02:50.4]} 17. Qb3 {[%clk 0:02:18.6]} 17... Kh8 {[%clk 0:02:26.7]} 18.
Qxb6 {[%clk 0:02:17.7]} 18... Bc6 {[%clk 0:02:25.1]} 19. Rb1 {[%clk 0:01:55.6]}
19... Nd6 {[%clk 0:02:12.5]} 20. Qc5 {[%clk 0:01:48.4]} 20... Bb5 {[%clk
0:01:53.4]} 21. Bxb5 {[%clk 0:01:45.9]} 21... Nxb5 {[%clk 0:01:54.3]} 22. a4
{[%clk 0:01:40.7]} 22... Rac8 {[%clk 0:01:53.6]} 23. Qb4 {[%clk 0:01:30.7]}
23... Nd6 {[%clk 0:01:51.2]} 24. Qa5 {[%clk 0:01:25.9]} 24... Qf5 {[%clk
0:01:32.2]} 25. Qb6 {[%clk 0:00:39.6]} 25... Nc4 {[%clk 0:01:23.8]} 26. Qb7
{[%clk 0:00:39.6]} 26... Rfe8 {[%clk 0:01:11.7]} 27. h3 {[%clk 0:00:27.6]} 27...
h5 {[%clk 0:01:09.2]} 28. Kh2 {[%clk 0:00:25.3]} 28... Kh7 {[%clk 0:01:03.8]}
29. Bg3 {[%clk 0:00:14.6]} 29... Nd2 {[%clk 0:00:57.2]} 30. Rbe1 {[%clk
0:00:09]} 30... Nxf1+ {[%clk 0:00:55.8]} 31. Rxf1 {[%clk 0:00:09.9]} 31... Rxc3
{[%clk 0:00:55.1]} 32. Qxa6 {[%clk 0:00:09.7]} 32... Ree3 {[%clk 0:00:54.2]} 33.
Bf2 {[%clk 0:00:06.9]} 33... Rxh3+ {[%clk 0:00:52.3]} 34. Kg1 {[%clk 0:00:03.9]}
34... Rhd3 {[%clk 0:00:48.5]} 35. Qb5 {[%clk 0:00:03.2]} 35... Rc2 {[%clk
0:00:36.8]} 36. a5 {[%clk 0:00:02.8]} 36... Rdd2 {[%clk 0:00:25.3]} 37. Qb1
{[%clk 0:00:02.5]} 37... Qe4 {[%clk 0:00:20.9]} 38. a6 {[%clk 0:00:02.4]} 38...
f5 {[%clk 0:00:17.1]} 39. a7 {[%clk 0:00:02.4]} 39... Ra2 {[%clk 0:00:16.2]} 40.
Qb7 {[%clk 0:00:03]} 40... Rxf2 {[%clk 0:00:09.3]} 41. Rxf2 {[%clk 0:00:02.5]}
41... Qe3 {[%clk 0:00:04.1]} 42. Qxd5 {[%clk 0:00:01.6]} 42... Qxf2+ {[%clk
0:00:04]} 43. Kh1 {[%clk 0:00:02.4]} 43... Qh4+ {[%clk 0:00:04.4]} 44. Kg1
{[%clk 0:00:02.7]} 44... Ra1# {[%clk 0:00:04.8]} 0-1

[Event "Late-Titled-Tuesday-Blitz-February-13-2024"]
[Site "Chess.com"]
[Date "2024.02.13"]
[Round "11"]
[White "GoltsevDmitry2000"]
[Black "ozates"]
[Result "1-0"]
[WhiteElo "2790"]
[BlackElo "2581"]
[TimeControl "180+1"]
[EndTime "16:05:48 PST"]
[Termination "GoltsevDmitry2000 won by resignation"]

1. e4 {[%clk 0:03:00.9]} 1... e5 {[%clk 0:02:56.8]} 2. Nf3 {[%clk 0:03:00.7]}
2... Nc6 {[%clk 0:02:54.3]} 3. Bb5 {[%clk 0:03:00.6]} 3... g6 {[%clk 0:02:53.5]}
4. c3 {[%clk 0:03:00.3]} 4... Bg7 {[%clk 0:02:53.3]} 5. d4 {[%clk 0:03:00.7]}
5... exd4 {[%clk 0:02:54.2]} 6. cxd4 {[%clk 0:03:00.4]} 6... a6 {[%clk
0:02:54.3]} 7. Ba4 {[%clk 0:03:00.3]} 7... Nge7 {[%clk 0:02:54.2]} 8. Nc3 {[%clk
0:03:00.5]} 8... O-O {[%clk 0:02:54.5]} 9. O-O {[%clk 0:02:59.8]} 9... b5 {[%clk
0:02:54.6]} 10. Bb3 {[%clk 0:02:59.5]} 10... Na5 {[%clk 0:02:54.7]} 11. Bc2
{[%clk 0:02:59.7]} 11... d6 {[%clk 0:02:55.4]} 12. Bg5 {[%clk 0:02:54.9]} 12...
Bg4 {[%clk 0:02:54.2]} 13. Nd5 {[%clk 0:02:49.6]} 13... f6 {[%clk 0:02:51]} 14.
Bh4 {[%clk 0:02:49.1]} 14... Nxd5 {[%clk 0:02:33.9]} 15. exd5 {[%clk 0:02:49.3]}
15... Nc4 {[%clk 0:02:33.5]} 16. b3 {[%clk 0:02:39.8]} 16... Nb6 {[%clk
0:02:33.5]} 17. h3 {[%clk 0:02:35.4]} 17... Bd7 {[%clk 0:02:20.4]} 18. Be4
{[%clk 0:02:15.1]} 18... Qe8 {[%clk 0:02:15]} 19. Re1 {[%clk 0:02:14]} 19... Qf7
{[%clk 0:02:14.8]} 20. Rc1 {[%clk 0:02:12.5]} 20... Rac8 {[%clk 0:02:14.8]} 21.
Qd2 {[%clk 0:02:01.1]} 21... Rfe8 {[%clk 0:02:03.2]} 22. Qa5 {[%clk 0:01:55.4]}
22... Nxd5 {[%clk 0:02:01.8]} 23. Qxa6 {[%clk 0:01:44.8]} 23... f5 {[%clk
0:01:50.3]} 24. Ng5 {[%clk 0:01:41.4]} 24... Nb4 {[%clk 0:01:48.2]} 25. Qxc8
{[%clk 0:01:24.2]} 25... Rxc8 {[%clk 0:01:41.8]} 26. Nxf7 {[%clk 0:01:23.9]}
26... Kxf7 {[%clk 0:01:42.7]} 27. Bb7 {[%clk 0:01:21.9]} 27... Re8 {[%clk
0:01:38.1]} 28. Rxe8 {[%clk 0:01:19.3]} 28... Kxe8 {[%clk 0:01:39]} 29. Rxc7
{[%clk 0:01:18.8]} 29... Bxd4 {[%clk 0:01:39.6]} 30. a3 {[%clk 0:01:14.1]} 30...
Nd3 {[%clk 0:01:27]} 31. Bc6 {[%clk 0:01:11.5]} 31... Bxc6 {[%clk 0:01:27.3]}
32. Rxc6 {[%clk 0:01:12.4]} 32... Kd7 {[%clk 0:01:27.8]} 33. Ra6 {[%clk
0:01:11.2]} 33... h6 {[%clk 0:01:20]} 34. Kf1 {[%clk 0:00:41]} 34... g5 {[%clk
0:01:19.9]} 35. Bg3 {[%clk 0:00:41.5]} 35... f4 {[%clk 0:01:19.5]} 36. Bh2
{[%clk 0:00:42.1]} 36... Nc5 {[%clk 0:01:05.6]} 37. Ra7+ {[%clk 0:00:39.8]}
37... Kc6 {[%clk 0:01:04.8]} 38. b4 {[%clk 0:00:38]} 38... Ne4 {[%clk
0:01:03.5]} 39. Rh7 {[%clk 0:00:36]} 39... Bb2 {[%clk 0:00:53]} 40. Rxh6 {[%clk
0:00:35.9]} 40... Bxa3 {[%clk 0:00:53.5]} 41. h4 {[%clk 0:00:36.6]} 41... gxh4
{[%clk 0:00:46.3]} 42. Bxf4 {[%clk 0:00:35.4]} 42... Bxb4 {[%clk 0:00:45.4]} 43.
Rxh4 {[%clk 0:00:35.7]} 43... Bc5 {[%clk 0:00:42.5]} 44. Be3 {[%clk 0:00:30.6]}
44... Nc3 {[%clk 0:00:42.3]} 45. Bd2 {[%clk 0:00:27.3]} 45... Nd5 {[%clk
0:00:41.4]} 46. g4 {[%clk 0:00:27.2]} 46... b4 {[%clk 0:00:41.6]} 47. g5 {[%clk
0:00:27.2]} 47... b3 {[%clk 0:00:41.7]} 48. Bc1 {[%clk 0:00:27.1]} 48... Ne7
{[%clk 0:00:25.1]} 49. Rh3 {[%clk 0:00:24.1]} 49... Kd5 {[%clk 0:00:20.6]} 50.
Rxb3 {[%clk 0:00:23.5]} 50... Ke5 {[%clk 0:00:20.5]} 51. Be3 {[%clk 0:00:22.6]}
51... Kf5 {[%clk 0:00:16.5]} 52. Bxc5 {[%clk 0:00:22.3]} 52... dxc5 {[%clk
0:00:16.8]} 53. Rb5 {[%clk 0:00:22.6]} 53... Kxg5 {[%clk 0:00:17.4]} 54. Rxc5+
{[%clk 0:00:23.1]} 54... Kf4 {[%clk 0:00:18.1]} 55. Ke2 {[%clk 0:00:23]} 55...
Nf5 {[%clk 0:00:18.7]} 56. Rc4+ {[%clk 0:00:22.8]} 56... Ke5 {[%clk 0:00:18.7]}
57. f4+ {[%clk 0:00:22.8]} 57... Kf6 {[%clk 0:00:18.9]} 58. Kf3 {[%clk
0:00:22.6]} 58... Ne7 {[%clk 0:00:19.5]} 59. Ke4 {[%clk 0:00:22.7]} 59... Kf7
{[%clk 0:00:19.6]} 60. Rc7 {[%clk 0:00:22.1]} 60... Ke6 {[%clk 0:00:19.8]} 61.
Ra7 {[%clk 0:00:22.4]} 61... Nf5 {[%clk 0:00:19.9]} 62. Ra6+ {[%clk 0:00:21.5]}
62... Nd6+ {[%clk 0:00:20.1]} 63. Rxd6+ {[%clk 0:00:21.7]} 63... Kxd6 {[%clk
0:00:20.1]} 64. Kf5 {[%clk 0:00:22.4]} 1-0

[Event "Late-Titled-Tuesday-Blitz-February-13-2024"]
[Site "Chess.com"]
[Date "2024.02.13"]
[Round "11"]
[White "claudyna16"]
[Black "zverr1"]
[Result "1-0"]
[WhiteElo "2456"]
[BlackElo "2534"]
[TimeControl "180+1"]
[EndTime "16:05:48 PST"]
[Termination "claudyna16 won by checkmate"]

1. c4 {[%clk 0:03:00.9]} 1... c5 {[%clk 0:02:51.2]} 2. g3 {[%clk 0:03:01.1]}
2... g6 {[%clk 0:02:49.6]} 3. Bg2 {[%clk 0:03:01.5]} 3... Bg7 {[%clk 0:02:49.9]}
4. Nc3 {[%clk 0:03:01.8]} 4... Nc6 {[%clk 0:02:49.7]} 5. a3 {[%clk 0:03:02]}
5... e5 {[%clk 0:02:49.4]} 6. e3 {[%clk 0:03:00.9]} 6... Nge7 {[%clk 0:02:48.7]}
7. Nge2 {[%clk 0:03:00.9]} 7... O-O {[%clk 0:02:48.7]} 8. O-O {[%clk 0:02:53.9]}
8... d6 {[%clk 0:02:48.3]} 9. h3 {[%clk 0:02:53]} 9... Be6 {[%clk 0:02:47.5]}
10. Nd5 {[%clk 0:02:52.6]} 10... Qd7 {[%clk 0:02:40.9]} 11. Kh2 {[%clk
0:02:52.4]} 11... Rab8 {[%clk 0:02:28.4]} 12. Nec3 {[%clk 0:02:44.2]} 12... f5
{[%clk 0:02:05.7]} 13. d3 {[%clk 0:02:42.9]} 13... a6 {[%clk 0:02:03.3]} 14. a4
{[%clk 0:02:37.6]} 14... Nb4 {[%clk 0:01:57.8]} 15. a5 {[%clk 0:02:28.7]} 15...
Nexd5 {[%clk 0:01:49.1]} 16. cxd5 {[%clk 0:02:29.6]} 16... Bf7 {[%clk
0:01:47.2]} 17. e4 {[%clk 0:02:12.7]} 17... f4 {[%clk 0:01:38.1]} 18. gxf4
{[%clk 0:02:03.3]} 18... exf4 {[%clk 0:01:38.1]} 19. Bxf4 {[%clk 0:02:00.2]}
19... Bxd5 {[%clk 0:01:17.1]} 20. Bg3 {[%clk 0:02:00]} 20... Be6 {[%clk
0:01:12]} 21. f4 {[%clk 0:01:58.7]} 21... Bd4 {[%clk 0:00:58.3]} 22. Qd2 {[%clk
0:01:44.7]} 22... d5 {[%clk 0:00:48.1]} 23. f5 {[%clk 0:01:29.3]} 23... gxf5
{[%clk 0:00:47.8]} 24. exf5 {[%clk 0:01:09]} 24... Bxf5 {[%clk 0:00:41.6]} 25.
Bxb8 {[%clk 0:01:04.9]} 25... Rxb8 {[%clk 0:00:40.9]} 26. Qg5+ {[%clk
0:01:04.7]} 26... Bg6 {[%clk 0:00:41.5]} 27. Nxd5 {[%clk 0:01:03.2]} 27... Qd6+
{[%clk 0:00:31.1]} 28. Kh1 {[%clk 0:01:01.5]} 28... Nxd5 {[%clk 0:00:25.4]} 29.
Qxd5+ {[%clk 0:00:57.1]} 29... Qxd5 {[%clk 0:00:25.4]} 30. Bxd5+ {[%clk
0:00:58]} 30... Kg7 {[%clk 0:00:26.1]} 31. Be4 {[%clk 0:00:55.6]} 31... Bxe4+
{[%clk 0:00:11.8]} 32. dxe4 {[%clk 0:00:56.5]} 32... Re8 {[%clk 0:00:11]} 33.
Rae1 {[%clk 0:00:50.7]} 33... Bxb2 {[%clk 0:00:05]} 34. Rb1 {[%clk 0:00:49.8]}
34... Bd4 {[%clk 0:00:05.7]} 35. Rxb7+ {[%clk 0:00:49.5]} 35... Kg6 {[%clk
0:00:06.4]} 36. Rb6+ {[%clk 0:00:41.8]} 36... Kg5 {[%clk 0:00:06.8]} 37. Rxa6
{[%clk 0:00:42]} 37... Rxe4 {[%clk 0:00:06.9]} 38. Ra8 {[%clk 0:00:40.5]} 38...
Re2 {[%clk 0:00:05.9]} 39. a6 {[%clk 0:00:39.2]} 39... Ra2 {[%clk 0:00:05.7]}
40. a7 {[%clk 0:00:39.4]} 40... Kh6 {[%clk 0:00:03.6]} 41. Rf4 {[%clk
0:00:24.2]} 41... Kh5 {[%clk 0:00:03.7]} 42. Rg4 {[%clk 0:00:22.1]} 42... h6
{[%clk 0:00:03.7]} 43. Rd8 {[%clk 0:00:14.5]} 43... Ra1+ {[%clk 0:00:03.2]} 44.
Kg2 {[%clk 0:00:14.2]} 44... Ra2+ {[%clk 0:00:02.9]} 45. Kf3 {[%clk 0:00:13.8]}
45... Ra3+ {[%clk 0:00:03.6]} 46. Ke4 {[%clk 0:00:11.6]} 46... Rxh3 {[%clk
0:00:03.4]} 47. a8=Q {[%clk 0:00:10.3]} 47... Kxg4 {[%clk 0:00:03.7]} 48. Rg8+
{[%clk 0:00:10]} 48... Kh5 {[%clk 0:00:02]} 49. Qe8+ {[%clk 0:00:09.9]} 49...
Kh4 {[%clk 0:00:02.8]} 50. Qe7+ {[%clk 0:00:09]} 50... Kh5 {[%clk 0:00:03.5]}
51. Qf7+ {[%clk 0:00:09.4]} 51... Kh4 {[%clk 0:00:04.1]} 52. Qf4+ {[%clk
0:00:08.7]} 52... Kh5 {[%clk 0:00:04.8]} 53. Qg4# {[%clk 0:00:09]} 1-0

[Event "Late-Titled-Tuesday-Blitz-February-13-2024"]
[Site "Chess.com"]
[Date "2024.02.13"]
[Round "11"]
[White "N_Mullodzhanov"]
[Black "fmcabralis"]
[Result "0-1"]
[WhiteElo "2465"]
[BlackElo "2266"]
[TimeControl "180+1"]
[EndTime "16:05:48 PST"]
[Termination "fmcabralis won by checkmate"]

1. e4 {[%clk 0:03:00.9]} 1... c5 {[%clk 0:02:56.3]} 2. c3 {[%clk 0:03:01]} 2...
d5 {[%clk 0:02:52.4]} 3. exd5 {[%clk 0:03:01]} 3... Qxd5 {[%clk 0:02:53.3]} 4.
d4 {[%clk 0:03:01.7]} 4... Nf6 {[%clk 0:02:51.2]} 5. Nf3 {[%clk 0:03:01.8]} 5...
e6 {[%clk 0:02:50.9]} 6. Na3 {[%clk 0:03:01.3]} 6... Be7 {[%clk 0:02:49.6]} 7.
Bc4 {[%clk 0:02:59.8]} 7... Qd8 {[%clk 0:02:38.9]} 8. O-O {[%clk 0:02:53.2]}
8... O-O {[%clk 0:02:38.9]} 9. Nc2 {[%clk 0:02:51.5]} 9... a6 {[%clk 0:02:35.7]}
10. dxc5 {[%clk 0:02:46.7]} 10... Bxc5 {[%clk 0:02:34.6]} 11. Bg5 {[%clk
0:02:45.5]} 11... Qxd1 {[%clk 0:02:25.8]} 12. Raxd1 {[%clk 0:02:46.4]} 12... Ne4
{[%clk 0:02:25.9]} 13. Be3 {[%clk 0:02:43.2]} 13... Bxe3 {[%clk 0:02:16.6]} 14.
Nxe3 {[%clk 0:02:44.1]} 14... Nc6 {[%clk 0:02:13.9]} 15. Bd3 {[%clk 0:02:41.1]}
15... Nc5 {[%clk 0:02:13.3]} 16. Bc2 {[%clk 0:02:41]} 16... e5 {[%clk
0:02:11.2]} 17. Ng5 {[%clk 0:02:38.9]} 17... h6 {[%clk 0:02:06.7]} 18. Ne4
{[%clk 0:02:36.9]} 18... Nxe4 {[%clk 0:02:06.2]} 19. Bxe4 {[%clk 0:02:37.8]}
19... Be6 {[%clk 0:02:00.9]} 20. Bxc6 {[%clk 0:02:36.5]} 20... bxc6 {[%clk
0:02:00.7]} 21. c4 {[%clk 0:02:36.5]} 21... Rfd8 {[%clk 0:01:56.8]} 22. b3
{[%clk 0:02:34.9]} 22... f5 {[%clk 0:01:54.3]} 23. Rfe1 {[%clk 0:02:24.8]} 23...
Kf7 {[%clk 0:01:52.6]} 24. Nc2 {[%clk 0:02:22.3]} 24... Kf6 {[%clk 0:01:51.1]}
25. f3 {[%clk 0:02:21.4]} 25... a5 {[%clk 0:01:49.2]} 26. f4 {[%clk 0:02:09]}
26... e4 {[%clk 0:01:38]} 27. Nd4 {[%clk 0:02:03.4]} 27... Rd6 {[%clk
0:00:52.3]} 28. Kf2 {[%clk 0:01:41.7]} 28... Rad8 {[%clk 0:00:47.5]} 29. Nxe6
{[%clk 0:01:32.7]} 29... Kxe6 {[%clk 0:00:29.9]} 30. Rxd6+ {[%clk 0:01:29.2]}
30... Rxd6 {[%clk 0:00:30.8]} 31. Ke2 {[%clk 0:01:28.1]} 31... Rd3 {[%clk
0:00:11.1]} 32. g3 {[%clk 0:01:25.6]} 32... Kd6 {[%clk 0:00:11.1]} 33. Rd1
{[%clk 0:01:19.2]} 33... Rxd1 {[%clk 0:00:10.1]} 34. Kxd1 {[%clk 0:01:20.1]}
34... Kc5 {[%clk 0:00:10.7]} 35. a3 {[%clk 0:01:13.7]} 35... a4 {[%clk 0:00:09]}
36. bxa4 {[%clk 0:01:10.3]} 36... Kxc4 {[%clk 0:00:08.9]} 37. Kc2 {[%clk
0:01:05.7]} 37... g5 {[%clk 0:00:07.8]} 38. h3 {[%clk 0:01:03.6]} 38... Kc5
{[%clk 0:00:05.4]} 39. Kc3 {[%clk 0:01:01.5]} 39... Kb6 {[%clk 0:00:05.7]} 40.
Kd4 {[%clk 0:00:51.8]} 40... gxf4 {[%clk 0:00:05.5]} 41. gxf4 {[%clk 0:00:50.4]}
41... Ka5 {[%clk 0:00:05.8]} 42. Ke5 {[%clk 0:00:33.1]} 42... e3 {[%clk
0:00:05.5]} 43. Kxf5 {[%clk 0:00:33.3]} 43... e2 {[%clk 0:00:05.9]} 44. Kg6
{[%clk 0:00:34.2]} 44... e1=Q {[%clk 0:00:06.2]} 45. f5 {[%clk 0:00:35.1]} 45...
Qg3+ {[%clk 0:00:05.7]} 46. Kxh6 {[%clk 0:00:35.2]} 46... Qxh3+ {[%clk
0:00:05.6]} 47. Kg5 {[%clk 0:00:35.7]} 47... Qg3+ {[%clk 0:00:05.8]} 48. Kf6
{[%clk 0:00:35.7]} 48... Qd6+ {[%clk 0:00:05.7]} 49. Kg7 {[%clk 0:00:35.5]}
49... Qe7+ {[%clk 0:00:05.7]} 50. Kg6 {[%clk 0:00:35.4]} 50... Qf8 {[%clk
0:00:05.9]} 51. f6 {[%clk 0:00:35.6]} 51... Kxa4 {[%clk 0:00:06.8]} 52. Kf5
{[%clk 0:00:35.4]} 52... Kxa3 {[%clk 0:00:07.7]} 53. Ke6 {[%clk 0:00:35.9]}
53... Kb4 {[%clk 0:00:08]} 54. f7 {[%clk 0:00:36.2]} 54... Kb5 {[%clk
0:00:07.9]} 55. Kf6 {[%clk 0:00:34.1]} 55... c5 {[%clk 0:00:08.8]} 56. Ke6
{[%clk 0:00:34.5]} 56... c4 {[%clk 0:00:09.5]} 57. Kf6 {[%clk 0:00:33.4]} 57...
c3 {[%clk 0:00:09.9]} 58. Ke6 {[%clk 0:00:33.6]} 58... c2 {[%clk 0:00:10.3]} 59.
Kf6 {[%clk 0:00:33.6]} 59... c1=Q {[%clk 0:00:10.4]} 60. Ke6 {[%clk 0:00:33.9]}
60... Qe3+ {[%clk 0:00:10.6]} 61. Kd7 {[%clk 0:00:32.8]} 61... Qd4+ {[%clk
0:00:10.6]} 62. Ke6 {[%clk 0:00:33]} 62... Qdd6+ {[%clk 0:00:10.4]} 63. Kf5
{[%clk 0:00:33.4]} 63... Qxf7+ {[%clk 0:00:10.7]} 64. Kg4 {[%clk 0:00:32.6]}
64... Qdg6+ {[%clk 0:00:11.2]} 65. Kh3 {[%clk 0:00:33.1]} 65... Qfh7# {[%clk
0:00:12.1]} 0-1